bitfinex/quotes_BTCUSD_20241201
["timestamp","ask_amount","ask_price","bid_price","bid_amount"]
[1733095526354,0.9228115,97888.0,97887.0,8.54724992]
[1733095526610,0.7957455,97888.0,97887.0,8.54724992]
[1733095526863,0.8027455,97888.0,97887.0,8.54724992]
[1733095527079,0.7957455,97888.0,97887.0,8.54724992]
[1733095527485,0.6007655,97888.0,97887.0,8.54824992]
[1733095527704,0.5987655,97888.0,97887.0,8.54824992]
[1733095528130,0.5987655,97888.0,97887.0,8.55124992]
[1733095530262,0.5987655,97888.0,97887.0,8.66086078]
[1733095533759,0.5987655,97888.0,97887.0,8.55124992]
[1733095533884,0.5987655,97888.0,97887.0,8.66086078]
[1733095535173,0.44721253,97888.0,97887.0,8.66086078]
[1733095535381,0.361096,97891.0,97890.0,0.13336565]
[1733095535611,0.0008644,97903.0,97892.0,0.00676565]
[1733095535828,2.183588,97902.0,97894.0,0.1266]
[1733095536058,2.183588,97902.0,97895.0,0.08256245]
[1733095536925,2.189588,97902.0,97895.0,0.08256245]
[1733095537140,1.685028,97901.0,97895.0,0.08256245]
[1733095537361,2.037902,97902.0,97895.0,0.0769]
[1733095537577,2.54323,97902.0,97895.0,0.0769]
[1733095537786,1.777147,97901.0,97895.0,0.0769]
[1733095538255,1.777147,97901.0,97896.0,0.00565904]
[1733095539359,1.777147,97901.0,97895.0,0.0769]
[1733095539994,0.006,97901.0,97895.0,0.0769]
[1733095540254,2.935925,97900.0,97895.0,0.0769]
[1733095540710,0.32192,97900.0,97899.0,0.00676565]
[1733095540909,0.006,97901.0,97900.0,0.13016565]
[1733095541054,0.005,97901.0,97900.0,0.23301086]
[1733095541268,0.0008644,97903.0,97900.0,0.1634514]
[1733095541467,1.599355,97902.0,97901.0,0.10284521]
[1733095541668,1.599355,97902.0,97901.0,0.09784521]
[1733095541878,1.587538,97902.0,97901.0,0.09784521]
[1733095542503,0.0008644,97903.0,97901.0,0.09784521]
[1733095542756,1.653641,97902.0,97901.0,0.09784521]
[1733095542963,1.653641,97902.0,97901.0,0.10361086]
[1733095543588,1.653641,97902.0,97901.0,0.10261086]
[1733095543812,1.611819,97902.0,97901.0,0.10761086]
[1733095544438,1.611819,97902.0,97901.0,0.10361086]
[1733095544652,1.611819,97902.0,97901.0,0.18241086]
[1733095545539,1.611819,97902.0,97901.0,0.17564521]
[1733095545739,1.611819,97902.0,97901.0,0.17264521]
[1733095545945,1.611819,97902.0,97901.0,0.18241086]
[1733095546145,1.611819,97902.0,97901.0,0.18341086]
[1733095546351,1.6126835,97902.0,97901.0,0.18341086]
[1733095546739,1.6126835,97902.0,97901.0,0.17941086]
[1733095546943,1.6126835,97902.0,97901.0,0.18341086]
[1733095547260,1.6126835,97902.0,97901.0,0.18741086]
[1733095548744,1.6126835,97902.0,97901.0,0.18521086]
[1733095549383,1.6126835,97902.0,97901.0,0.17844521]
[1733095551747,1.6126835,97902.0,97901.0,0.17444521]
[1733095551976,1.6126835,97902.0,97901.0,0.17044521]
[1733095552191,1.6126835,97902.0,97901.0,0.17544521]
[1733095553057,1.6126835,97902.0,97901.0,0.18221086]
[1733095553289,1.4477455,97902.0,97901.0,0.18221086]
[1733095553972,1.4477455,97902.0,97901.0,0.17544521]
[1733095554209,0.0008645,97902.0,97901.0,0.17544521]
[1733095554406,2.7066415,97902.0,97901.0,0.17544521]
[1733095554632,2.2671415,97902.0,97901.0,0.18105073]
[1733095554859,2.1669205,97902.0,97901.0,0.17544521]
[1733095555482,2.1669205,97902.0,97901.0,0.18221086]
[1733095555690,1.3303405,97902.0,97901.0,0.18221086]
[1733095558302,1.3303405,97902.0,97901.0,0.18394106]
[1733095558961,1.18198742,97902.0,97901.0,0.18394106]
[1733095560071,1.18198742,97902.0,97901.0,0.17717541]
[1733095560296,1.18198742,97902.0,97901.0,0.0835302]
[1733095560546,1.18198742,97902.0,97901.0,0.0067302]
[1733095561167,1.18198742,97902.0,97901.0,0.0060302]
[1733095561388,1.18198742,97902.0,97901.0,0.0037302]
[1733095561597,1.03271849,97902.0,97901.0,0.0017302]
[1733095561819,1.03671849,97902.0,97901.0,0.0047302]
[1733095562031,1.03271849,97902.0,97901.0,0.0047302]
[1733095562240,1.03271849,97902.0,97901.0,0.0017302]
[1733095562439,1.03271849,97902.0,97901.0,0.0027302]
[1733095562440,1.03971849,97902.0,97901.0,0.0027302]
[1733095563133,1.04071849,97902.0,97901.0,0.0027302]
[1733095563580,1.04071849,97902.0,97901.0,0.0858302]
[1733095563826,1.04071849,97902.0,97901.0,0.0823302]
[1733095564541,1.04071849,97902.0,97891.0,0.048]
[1733095564776,4.085161,97901.0,97891.0,0.048]
[1733095565245,4.085161,97900.0,97891.0,0.048]
[1733095565732,3.848111,97899.0,97891.0,0.048]
[1733095565966,4.085161,97898.0,97883.0,0.0495]
[1733095566462,4.032666,97897.0,97883.0,0.0495]
[1733095566679,4.085161,97896.0,97883.0,0.0495]
[1733095566897,3.869493,97895.0,97883.0,0.1252]
[1733095567156,3.654727,97894.0,97883.0,0.1252]
[1733095567371,3.438894,97893.0,97883.0,0.1252]
[1733095567622,3.035056,97892.0,97883.0,0.1252]
[1733095567856,3.207254,97891.0,97883.0,0.1252]
[1733095568338,2.908031,97890.0,97887.0,8.41075282]
[1733095568789,3.222491,97889.0,97887.0,8.41075282]
[1733095569007,3.078191,97888.0,97887.0,8.40975282]
[1733095569225,3.574783,97902.0,97887.0,8.40975282]
[1733095569488,0.001,97891.0,97887.0,8.40975282]
[1733095569681,3.85656,97890.0,97887.0,8.41175282]
[1733095569911,3.855727,97889.0,97887.0,8.41175282]
[1733095570133,3.027481,97888.0,97887.0,8.41175282]
[1733095571015,3.027481,97888.0,97887.0,8.40975282]
[1733095571419,3.027481,97888.0,97887.0,8.41075282]
[1733095572119,3.027481,97888.0,97887.0,8.41275282]
[1733095572826,2.888687,97888.0,97887.0,8.41275282]
[1733095573778,2.811991,97888.0,97887.0,8.41275282]
[1733095574443,2.646188,97888.0,97887.0,8.41275282]
[1733095575791,2.530761,97888.0,97887.0,8.41275282]
[1733095578026,1.783654,97888.0,97887.0,8.41055282]
[1733095578247,0.932739,97888.0,97887.0,8.52016368]
[1733095578459,0.932739,97888.0,97887.0,8.64476368]
[1733095578902,0.932739,97888.0,97887.0,8.64153969]
[1733095579122,0.932739,97888.0,97887.0,8.63477404]
[1733095579331,0.932739,97888.0,97887.0,8.63267404]
[1733095579756,0.932739,97888.0,97887.0,8.63943969]
[1733095579976,0.932739,97888.0,97887.0,8.63267404]
[1733095581119,0.932739,97888.0,97887.0,8.52982883]
[1733095581341,0.932739,97888.0,97887.0,8.52212883]
[1733095582018,0.9336042,97888.0,97887.0,8.52212883]
[1733095582705,0.9336042,97888.0,97887.0,8.63173969]
[1733095583177,0.8364542,97888.0,97887.0,8.63173969]
[1733095584476,0.0008652,97888.0,97887.0,8.63173969]
[1733095584708,1.8252862,97888.0,97887.0,8.63173969]
[1733095584936,1.8547562,97888.0,97887.0,8.63173969]
[1733095585159,0.0008652,97888.0,97887.0,8.63173969]
[1733095585860,0.0008652,97888.0,97887.0,8.62923969]
[1733095586290,1.8201122,97888.0,97887.0,8.62923969]
[1733095586502,1.8201122,97888.0,97887.0,8.62163969]
[1733095587639,1.8201122,97888.0,97887.0,8.61487404]
[1733095588705,1.8201122,97888.0,97887.0,8.51202883]
[1733095591301,1.67180543,97888.0,97887.0,8.51202883]
[1733095591559,0.0008651,97902.0,97887.0,8.51202883]
[1733095591560,3.93772,97901.0,97887.0,8.51202883]
[1733095591781,3.93772,97900.0,97890.0,0.07110081]
[1733095592268,3.93772,97899.0,97890.0,0.07110081]
[1733095592511,3.93772,97898.0,97890.0,0.07110081]
[1733095592736,4e-05,97900.0,97890.0,0.07110081]
[1733095592737,2.982292,97897.0,97890.0,0.07110081]
[1733095592966,2.395428,97896.0,97890.0,0.07110081]
[1733095593240,3.031401,97895.0,97888.0,0.00676565]
[1733095593458,3.048044,97894.0,97888.0,0.10691086]
[1733095593683,3.045048,97893.0,97888.0,0.10381086]
[1733095593899,2.467658,97892.0,97888.0,0.10381086]
[1733095594121,2.467658,97892.0,97888.0,0.10221086]
[1733095594342,2.409518,97891.0,97888.0,0.10221086]
[1733095594535,2.1303,97890.0,97888.0,0.09661086]
[1733095594791,2.1303,97889.0,97888.0,0.09661086]
[1733095595005,1.91952,97889.0,97888.0,0.08591086]
[1733095595474,1.91952,97889.0,97888.0,0.08691086]
[1733095595721,1.761606,97889.0,97888.0,0.16771086]
[1733095595957,0.004,97896.0,97888.0,0.16671086]
[1733095596169,2.820004,97895.0,97888.0,0.16671086]
[1733095596390,0.002,97892.0,97888.0,0.16671086]
[1733095596613,1.760901,97891.0,97888.0,0.16671086]
[1733095597084,0.001,97889.0,97888.0,0.16971086]
[1733095597266,2.808857,97889.0,97888.0,0.16871086]
[1733095597507,2.660332,97889.0,97888.0,0.17071086]
[1733095597745,2.265193,97889.0,97888.0,0.16671086]
[1733095598004,2.123155,97889.0,97888.0,0.16671086]
[1733095598228,2.123155,97889.0,97888.0,0.17071086]
[1733095598672,2.123155,97889.0,97888.0,0.16671086]
[1733095599105,2.124155,97889.0,97888.0,0.17071086]
[1733095599599,2.124155,97889.0,97888.0,0.17471086]
[1733095599815,2.124155,97889.0,97888.0,0.17071086]
[1733095600120,2.125155,97889.0,97888.0,0.17471086]
[1733095600345,1.723801,97889.0,97888.0,0.17471086]
[1733095600575,1.523394,97889.0,97888.0,0.17471086]
[1733095604180,1.523394,97889.0,97888.0,0.0888]
[1733095604389,1.5242592,97889.0,97888.0,0.0888]
[1733095604984,1.5242592,97889.0,97888.0,0.087]
[1733095606795,1.41088925,97889.0,97888.0,0.087]
[1733095607025,1.41088925,97889.0,97888.0,0.086]
[1733095607260,1.4243762,97889.0,97888.0,0.086]
[1733095607716,0.0008652,97889.0,97888.0,0.086]
[1733095608458,1.5712012,97889.0,97888.0,0.086]
[1733095608685,1.6481762,97889.0,97888.0,0.0851]
[1733095609128,1.4997212,97889.0,97888.0,0.0851]
[1733095609789,1.4882252,97889.0,97888.0,0.0851]
[1733095610231,1.4774372,97889.0,97888.0,0.0843]
[1733095611854,1.4774372,97889.0,97888.0,0.079]
[1733095612968,1.4336712,97889.0,97888.0,0.079]
[1733095615632,1.28421754,97889.0,97888.0,0.079]
[1733095615844,3.528496,97891.0,97888.0,0.079]
[1733095616093,3.528496,97890.0,97888.0,0.079]
[1733095616305,3.528496,97889.0,97888.0,0.079]
[1733095616736,3.528496,97889.0,97888.0,0.0634]
[1733095616950,3.5293612,97889.0,97888.0,0.0572]
[1733095617192,3.5293612,97889.0,97888.0,0.0652]
[1733095617444,3.5293612,97889.0,97888.0,0.0621]
[1733095617657,3.5293612,97889.0,97888.0,0.0581]
[1733095617870,3.5303612,97889.0,97888.0,0.0567]
[1733095618563,3.5303612,97889.0,97888.0,0.0446]
[1733095618804,3.5303612,97889.0,97888.0,0.005]
[1733095619036,3.5313612,97889.0,97888.0,0.0092]
[1733095619253,3.4451102,97889.0,97888.0,0.0092]
[1733095619471,2.6404402,97889.0,97888.0,0.0092]
[1733095619710,1.3729412,97889.0,97888.0,0.0092]
[1733095619925,0.0028652,97889.0,97888.0,0.0092]
[1733095620815,1.6776062,97889.0,97888.0,0.0092]
[1733095621038,1.6612442,97889.0,97888.0,0.0092]
[1733095621470,1.6331642,97889.0,97888.0,0.0892]
[1733095621713,1.3600012,97889.0,97888.0,0.1371]
[1733095624105,1.3600012,97889.0,97888.0,0.0092]
[1733095625225,1.3600012,97889.0,97888.0,0.01391877]
[1733095628291,1.3600012,97889.0,97888.0,0.01564917]
[1733095628533,1.21141954,97889.0,97888.0,0.01394917]
[1733095628768,2.803336,97891.0,97888.0,0.01394917]
[1733095628997,3.056393,97890.0,97888.0,0.01174917]
[1733095629216,3.063096,97889.0,97888.0,0.01174917]
[1733095629435,3.047317,97889.0,97888.0,0.01174917]
[1733095629652,3.047317,97889.0,97888.0,0.00674917]
[1733095629868,3.047317,97889.0,97888.0,0.00644917]
[1733095630120,3.047317,97889.0,97888.0,0.01044917]
[1733095630576,3.048317,97889.0,97888.0,0.01544917]
[1733095630811,3.048317,97889.0,97888.0,0.01364917]
[1733095631033,3.048317,97889.0,97888.0,0.0067304]
[1733095631526,2.95214,97889.0,97888.0,0.0107304]
[1733095632078,2.95114,97889.0,97888.0,0.0057304]
[1733095632305,2.95114,97889.0,97888.0,0.0051304]
[1733095632534,2.95114,97889.0,97888.0,0.0091304]
[1733095632970,2.95014,97889.0,97888.0,0.0051304]
[1733095633691,2.805589,97889.0,97888.0,0.0051304]
[1733095633920,2.625138,97889.0,97888.0,0.0051304]
[1733095634179,4e-05,97892.0,97891.0,0.01]
[1733095634403,4e-05,97892.0,97891.0,0.24225309]
[1733095634638,4e-05,97892.0,97891.0,0.24044521]
[1733095635776,0.422841,97892.0,97891.0,0.24244521]
[1733095635998,0.422841,97892.0,97891.0,0.24044521]
[1733095636218,0.325341,97892.0,97891.0,0.24744521]
[1733095636347,0.00104,97892.0,97891.0,0.24944521]
[1733095636808,0.00104,97892.0,97891.0,0.24744521]
[1733095637007,0.00204,97892.0,97891.0,0.25244521]
[1733095639404,0.1315472,97892.0,97891.0,0.25244521]
[1733095639629,0.0029052,97892.0,97891.0,0.25244521]
[1733095641907,0.5317852,97892.0,97891.0,0.25244521]
[1733095642363,0.3211262,97892.0,97891.0,0.25244521]
[1733095642853,4e-05,97900.0,97899.0,0.01]
[1733095643101,0.0008641,97932.0,97924.0,0.1356]
[1733095643357,0.0008641,97932.0,97924.0,0.23844521]
[1733095644296,0.0018643,97925.0,97924.0,0.24644521]
[1733095644522,0.00245949,97925.0,97924.0,0.24644521]
[1733095644999,1.14239249,97925.0,97924.0,0.24644521]
[1733095645215,0.37708849,97925.0,97924.0,0.24644521]
[1733095645715,0.37608849,97925.0,97924.0,0.23844521]
[1733095645972,0.00245949,97925.0,97924.0,0.24744521]
[1733095646673,0.00245949,97925.0,97924.0,0.25544521]
[1733095646674,0.00345949,97925.0,97924.0,0.25544521]
[1733095650612,0.00345949,97925.0,97924.0,0.11984521]
[1733095650845,0.00345949,97925.0,97924.0,0.12984521]
[1733095651315,0.12314749,97925.0,97924.0,0.12984521]
[1733095651544,0.05271935,97942.0,97924.0,0.12984521]
[1733095651784,2.62879,97941.0,97932.0,0.10821977]
[1733095652017,2.62879,97941.0,97933.0,0.10284521]
[1733095652485,2.62879,97941.0,97930.0,0.10821977]
[1733095652718,2.62879,97941.0,97920.0,0.01]
[1733095652719,2.62879,97941.0,97920.0,0.10821977]
[1733095652943,2.67767684,97941.0,97932.0,0.005]
[1733095653207,3.126841,97940.0,97932.0,0.005]
[1733095653443,0.0474,97940.0,97910.0,0.10821977]
[1733095653668,3.126841,97939.0,97911.0,0.10284521]
[1733095653898,3.126841,97939.0,97930.0,0.001]
[1733095654607,0.0989,97937.0,97930.0,0.001]
[1733095654843,3.22968621,97936.0,97930.0,0.001]
[1733095655071,3.20040726,97935.0,97930.0,0.001]
[1733095655316,3.22968621,97934.0,97900.0,0.10821977]
[1733095655537,3.22967246,97933.0,97900.0,0.10821977]
[1733095655819,3.22968621,97932.0,97900.0,0.10821977]
[1733095656046,0.01,97930.0,97887.0,8.36875923]
[1733095656269,3.28418621,97929.0,97888.0,0.10284521]
[1733095656501,0.265,97927.0,97890.0,0.10821977]
[1733095656721,3.22968621,97926.0,97890.0,0.10821977]
[1733095656960,3.126841,97925.0,97900.0,0.001]
[1733095657176,3.126841,97925.0,97887.0,8.36875923]
[1733095657177,0.01,97922.0,97887.0,8.36875923]
[1733095657393,3.33251767,97921.0,97887.0,8.36305923]
[1733095657629,0.01,97917.0,97887.0,8.36305923]
[1733095657816,1.11084521,97916.0,97887.0,8.36095923]
[1733095658140,0.0183,97910.0,97887.0,8.36095923]
[1733095658381,0.0183,97907.0,97887.0,8.36095923]
[1733095658604,3.22968621,97906.0,97887.0,8.36095923]
[1733095658814,3.126841,97905.0,97890.0,0.001]
[1733095659029,0.10284521,97904.0,97890.0,0.001]
[1733095659246,3.126841,97903.0,97887.0,8.36095923]
[1733095659473,0.20567667,97902.0,97887.0,8.36015923]
[1733095659726,3.126841,97901.0,97887.0,8.36015923]
[1733095659951,0.10284521,97900.0,97887.0,8.36015923]
[1733095660169,3.126841,97899.0,97887.0,8.36015923]
[1733095660382,3.22968621,97899.0,97887.0,8.36015923]
[1733095660593,3.22968621,97898.0,97887.0,8.36015923]
[1733095660814,3.126841,97897.0,97887.0,8.36015923]
[1733095661031,0.85484521,97896.0,97887.0,8.36015923]
[1733095661258,3.20040726,97895.0,97887.0,8.35855923]
[1733095661485,3.126841,97894.0,97887.0,8.35855923]
[1733095662134,0.0183,97893.0,97887.0,8.35855923]
[1733095662346,3.126841,97892.0,97887.0,8.35955923]
[1733095662775,3.126841,97892.0,97887.0,8.35855923]
[1733095662993,3.126841,97892.0,97887.0,8.35695923]
[1733095663177,3.1275061,97892.0,97887.0,8.35695923]
[1733095663397,3.126841,97891.0,97887.0,8.35415923]
[1733095663863,3.22968621,97891.0,97887.0,8.35415923]
[1733095664077,3.126841,97890.0,97887.0,8.34715923]
[1733095665258,3.1275061,97890.0,97887.0,8.34715923]
[1733095665675,3.126841,97889.0,97887.0,8.34715923]
[1733095666267,3.1275061,97889.0,97887.0,8.33995923]
[1733095666455,0.0006651,97889.0,97887.0,8.33395923]
[1733095666599,3.126841,97888.0,97887.0,8.33395923]
[1733095666821,3.33251767,97888.0,97887.0,8.33395923]
[1733095667037,3.33251767,97888.0,97887.0,8.33295923]
[1733095667234,3.33318277,97888.0,97887.0,8.33295923]
[1733095667535,3.33318277,97888.0,97887.0,8.33741899]
[1733095667740,3.34318277,97888.0,97887.0,8.33741899]
[1733095668311,3.34318277,97888.0,97887.0,8.31911899]
[1733095668521,3.24035131,97888.0,97887.0,8.31911899]
[1733095668919,3.24935131,97888.0,97887.0,8.31911899]
[1733095669165,3.24035131,97888.0,97887.0,8.31911899]
[1733095669581,3.24035131,97888.0,97887.0,8.31271899]
[1733095669582,3.24935131,97888.0,97887.0,8.31271899]
[1733095669862,3.24335131,97888.0,97887.0,8.31271899]
[1733095670078,3.25235131,97888.0,97887.0,8.31271899]
[1733095670317,0.12251031,97888.0,97887.0,8.31271899]
[1733095670733,0.12751031,97888.0,97887.0,8.31271899]
[1733095670899,3.25435131,97888.0,97887.0,8.30351899]
[1733095671131,3.24035131,97888.0,97887.0,8.29961899]
[1733095671322,3.24035131,97888.0,97887.0,8.29661899]
[1733095671523,3.24535131,97888.0,97887.0,8.29661899]
[1733095671892,3.29607189,97888.0,97887.0,8.28741899]
[1733095672108,3.30507189,97888.0,97887.0,8.28741899]
[1733095672311,3.35057189,97888.0,97887.0,8.28121899]
[1733095672505,3.35957189,97888.0,97887.0,8.27401899]
[1733095672736,2.98726931,97888.0,97887.0,8.26551899]
[1733095673140,2.92876931,97888.0,97887.0,8.26551899]
[1733095673364,2.93776931,97888.0,97887.0,8.26551899]
[1733095673585,2.93276931,97888.0,97887.0,8.26551899]
[1733095674065,2.93776931,97888.0,97887.0,8.26551899]
[1733095674507,2.92380931,97888.0,97887.0,8.26551899]
[1733095674732,2.93280931,97888.0,97887.0,8.26551899]
[1733095674977,2.93580931,97888.0,97887.0,8.26551899]
[1733095675191,2.77822887,97888.0,97887.0,8.26551899]
[1733095675412,2.78722887,97888.0,97887.0,8.34131899]
[1733095675622,2.78722887,97888.0,97887.0,8.4441642]
[1733095675623,0.237769,97888.0,97887.0,8.4441642]
[1733095675837,0.183269,97888.0,97887.0,8.4441642]
[1733095676739,0.180269,97888.0,97887.0,8.4441642]
[1733095676931,0.183269,97888.0,97887.0,8.4441642]
[1733095677475,0.171269,97888.0,97887.0,8.4441642]
[1733095677700,0.176269,97888.0,97887.0,8.4451642]
[1733095677910,0.172269,97888.0,97887.0,8.4451642]
[1733095678403,0.173269,97888.0,97887.0,8.4451642]
[1733095678617,0.171269,97888.0,97887.0,8.4441642]
[1733095678849,0.171269,97888.0,97887.0,8.44070444]
[1733095679071,0.172269,97888.0,97887.0,8.33785923]
[1733095679311,0.172269,97888.0,97887.0,8.26205923]
[1733095679534,0.172269,97888.0,97887.0,8.26652129]
[1733095679768,0.173269,97888.0,97887.0,8.26512129]
[1733095680243,0.172269,97888.0,97887.0,8.26412129]
[1733095680477,0.171269,97888.0,97887.0,8.26412129]
[1733095680918,0.172269,97888.0,97887.0,8.26512129]
[1733095681148,0.171269,97888.0,97887.0,8.26412129]
[1733095683150,0.171269,97888.0,97887.0,8.26512129]
[1733095683649,0.171269,97888.0,97887.0,8.4433665]
[1733095685272,0.1721342,97888.0,97887.0,8.4433665]
[1733095685698,0.1721342,97888.0,97887.0,8.43890444]
[1733095686339,0.0009052,97888.0,97887.0,8.43890444]
[1733095686697,3.0826762,97888.0,97887.0,8.43890444]
[1733095687560,3.0826762,97888.0,97887.0,8.33605923]
[1733095687726,3.0826762,97888.0,97887.0,8.33445923]
[1733095690532,2.930243,97888.0,97887.0,8.33445923]
[1733095691216,2.581989,97888.0,97887.0,8.33445923]
[1733095691447,2.055616,97888.0,97887.0,8.33445923]
[1733095691702,1.936655,97888.0,97887.0,8.33445923]
[1733095692109,1.62509,97888.0,97887.0,8.33445923]
[1733095692536,1.571448,97888.0,97887.0,8.33445923]
[1733095693825,0.960866,97888.0,97887.0,8.48700444]
[1733095695437,0.8404102,97888.0,97887.0,8.48700444]
[1733095697409,0.8412754,97888.0,97887.0,8.48700444]
[1733095700566,0.0008652,97888.0,97887.0,8.48700444]
[1733095700772,2.8106522,97888.0,97887.0,8.48700444]
[1733095703688,2.8106522,97888.0,97887.0,8.48500444]
[1733095704131,2.8106522,97888.0,97887.0,8.48700444]
[1733095704349,2.3183692,97888.0,97887.0,8.48700444]
[1733095704572,2.3183692,97888.0,97887.0,8.48600444]
[1733095704783,2.3183692,97888.0,97887.0,8.48500444]
[1733095704987,2.3193692,97888.0,97887.0,8.48600444]
[1733095705665,2.16870658,97888.0,97887.0,8.48600444]
[1733095706111,2.16970658,97888.0,97887.0,8.49100444]
[1733095708340,2.16612,97888.0,97887.0,8.49100444]
[1733095708544,2.16616,97888.0,97887.0,8.49100444]
[1733095709316,2.0551711,97888.0,97887.0,8.49100444]
[1733095710657,1.5087811,97888.0,97887.0,8.49100444]
[1733095711594,1.3189521,97888.0,97887.0,8.49100444]
[1733095712951,1.16691033,97888.0,97887.0,8.49100444]
[1733095714539,0.195931,97888.0,97887.0,8.50100444]
[1733095714705,0.102958,97888.0,97887.0,8.37590444]
[1733095715048,0.0008652,97889.0,97888.0,0.01]
[1733095715249,0.0008652,97889.0,97888.0,0.23865311]
[1733095715454,0.0008652,97889.0,97888.0,0.23684521]
[1733095716177,0.2155612,97889.0,97888.0,0.23684521]
[1733095716386,0.1180612,97889.0,97888.0,0.24184521]
[1733095717044,0.1190612,97889.0,97888.0,0.24684521]
[1733095717459,0.1190612,97889.0,97888.0,0.24769221]
[1733095717923,0.1190612,97889.0,97888.0,0.24499221]
[1733095722657,0.1190612,97889.0,97888.0,0.24169221]
[1733095722866,0.1190612,97889.0,97888.0,0.23779221]
[1733095723778,0.03277175,97889.0,97888.0,0.23779221]
[1733095725069,0.07101245,97907.0,97897.0,0.10821977]
[1733095725278,2.394657,97906.0,97898.0,0.10114521]
[1733095725469,2.394657,97906.0,97898.0,0.09264521]
[1733095725695,2.394657,97906.0,97898.0,0.08994521]
[1733095726728,0.07101245,97907.0,97898.0,0.08774521]
[1733095726942,0.07101245,97907.0,97898.0,0.08504521]
[1733095727202,2.394657,97906.0,97898.0,0.08504521]
[1733095727654,2.394657,97906.0,97898.0,0.08094521]
[1733095727872,2.397657,97906.0,97898.0,0.08094521]
[1733095728099,2.394657,97905.0,97898.0,0.08094521]
[1733095728321,0.003,97906.0,97905.0,0.0829]
[1733095728549,0.003,97906.0,97905.0,0.23535262]
[1733095728765,0.003,97906.0,97905.0,0.23354521]
[1733095729441,0.0099,97956.0,97920.0,0.0001]
[1733095729654,1.208779,97932.0,97923.0,0.10821977]
[1733095729876,1.208779,97932.0,97924.0,0.10284521]
[1733095730725,1.20890043,97932.0,97924.0,0.10284521]
[1733095731027,1.511696,97931.0,97924.0,0.10284521]
[1733095731241,2.346972,97930.0,97924.0,0.10784521]
[1733095731455,2.394657,97931.0,97924.0,0.10784521]
[1733095731672,2.394657,97931.0,97924.0,0.10284521]
[1733095732106,1.828274,97930.0,97924.0,0.10784521]
[1733095732319,1.236639,97929.0,97924.0,0.10784521]
[1733095732510,1.311328,97928.0,97924.0,0.11284521]
[1733095732750,1.264799,97931.0,97924.0,0.10784521]
[1733095732972,2.395657,97931.0,97924.0,0.11284521]
[1733095733200,1.337991,97930.0,97924.0,0.10784521]
[1733095733415,1.504956,97929.0,97924.0,0.10284521]
[1733095733595,1.347736,97928.0,97924.0,0.11284521]
[1733095733953,1.347736,97928.0,97924.0,0.10284521]
[1733095734156,1.937531,97931.0,97924.0,0.10784521]
[1733095734358,1.937531,97931.0,97924.0,0.11284521]
[1733095734359,1.580519,97930.0,97924.0,0.11284521]
[1733095734767,1.580519,97930.0,97924.0,0.10784521]
[1733095735166,0.001,97928.0,97924.0,0.11284521]
[1733095735394,1.396572,97927.0,97924.0,0.11284521]
[1733095736162,1.396572,97927.0,97924.0,0.10784521]
[1733095736379,1.396572,97927.0,97924.0,0.11284521]
[1733095736588,1.346732,97927.0,97924.0,0.10784521]
[1733095736807,1.42475,97927.0,97924.0,0.10784521]
[1733095737019,0.001,97927.0,97924.0,0.11284521]
[1733095737256,0.582297,97926.0,97925.0,0.13]
[1733095737461,0.360905,97926.0,97925.0,0.23284521]
[1733095737674,0.288652,97926.0,97925.0,0.23284521]
[1733095738138,0.288652,97926.0,97925.0,0.23044521]
[1733095738682,0.289652,97926.0,97925.0,0.23544521]
[1733095738744,0.001,97926.0,97925.0,0.23544521]
[1733095738945,0.423521,97926.0,97925.0,0.23544521]
[1733095739179,0.359969,97926.0,97925.0,0.23504521]
[1733095739593,0.360969,97926.0,97925.0,0.24004521]
[1733095740879,0.360969,97926.0,97925.0,0.24000521]
[1733095741308,0.360969,97926.0,97925.0,0.23970521]
[1733095743243,0.3602775,97926.0,97925.0,0.23970521]
[1733095744115,0.3611425,97926.0,97925.0,0.23970521]
[1733095744993,0.3611425,97926.0,97925.0,0.23730521]
[1733095746556,0.3611425,97926.0,97925.0,0.11284521]
[1733095748112,0.3611425,97926.0,97925.0,0.11054521]
[1733095749476,0.3611425,97926.0,97925.0,0.19254521]
[1733095749692,0.0021735,97926.0,97925.0,0.11054521]
[1733095749896,0.0021735,97926.0,97925.0,0.10984521]
[1733095750127,2.3968305,97926.0,97925.0,0.10984521]
[1733095750343,0.0021735,97926.0,97925.0,0.10984521]
[1733095750549,2.239817,97926.0,97925.0,0.10484521]
[1733095750776,2.396522,97926.0,97925.0,0.10884521]
[1733095750980,0.001865,97926.0,97925.0,0.10884521]
[1733095751198,2.396522,97926.0,97925.0,0.10884521]
[1733095751427,2.396522,97926.0,97925.0,0.10484521]
[1733095751625,2.397522,97926.0,97925.0,0.10714521]
[1733095751832,2.397522,97926.0,97925.0,0.009]
[1733095752015,2.397522,97926.0,97910.0,0.19001977]
[1733095752238,2.394657,97925.0,97911.0,0.10284521]
[1733095752477,2.394657,97925.0,97911.0,0.09464521]
[1733095753774,2.396657,97925.0,97911.0,0.09464521]
[1733095754045,2.967657,97924.0,97900.0,0.10821977]
[1733095754254,2.394657,97923.0,97903.0,0.0001]
[1733095754486,2.394657,97923.0,97904.0,0.10294521]
[1733095754908,2.394657,97923.0,97911.0,0.001]
[1733095756499,2.396657,97923.0,97911.0,0.001]
[1733095756711,2.394657,97922.0,97911.0,0.001]
[1733095756925,0.0084,97920.0,97900.0,0.0017296]
[1733095757168,2.24246,97919.0,97903.0,0.001]
[1733095757393,2.24246,97918.0,97903.0,0.001]
[1733095757613,2.24246,97917.0,97900.0,0.10457481]
[1733095757851,2.24246,97916.0,97900.0,0.10457481]
[1733095758065,2.24246,97915.0,97911.0,0.001]
[1733095758293,0.0084,97920.0,97911.0,0.001]
[1733095758294,2.24246,97914.0,97911.0,0.001]
[1733095758504,2.24246,97913.0,97900.0,0.0017296]
[1733095758742,2.24246,97912.0,97900.0,0.0017296]
[1733095758963,0.0084,97914.0,97900.0,0.0017296]
[1733095758964,2.24246,97911.0,97900.0,0.0017296]
[1733095759189,2.24246,97910.0,97900.0,0.0017296]
[1733095759407,2.24246,97909.0,97900.0,0.0027296]
[1733095759615,2.33796,97908.0,97900.0,0.0027296]
[1733095759844,0.0016,97906.0,97900.0,0.0027296]
[1733095760070,2.25086,97905.0,97900.0,0.0027296]
[1733095760287,3.07146,97904.0,97900.0,0.0027296]
[1733095760507,2.24246,97903.0,97900.0,0.0017296]
[1733095760721,2.24246,97902.0,97900.0,0.0017296]
[1733095760929,0.829,97904.0,97900.0,0.0017296]
[1733095760930,2.62713667,97901.0,97900.0,0.0017296]